[Event "Targo Mures Open 2019"]
[Site "Targo Mures"]
[Date "2019.10.20"]
[Round "6.11"]
[White "Paraschiv, Paul-Alexandru"]
[Black "Juncu, Nicolae"]
[Result "1/2-1/2"]
[ECO "A41"]
[WhiteElo "2023"]
[BlackElo "1857"]
[Annotator "NA"]
[PlyCount "82"]
[EventDate "2019.03.02"]
[EventType "swiss"]
[EventCountry "ROU"]
[SourceTitle "playchess.com"]
[Source "ChessBase"]
[SourceQuality "1"]
[TimeControl "5400+30"]

{[%evp 8,81,33,16,43,29,50,29,28,8,45,27,77,17,68,75,70,68,72,67,62,35,39,27,12,26,29,25,30,-78,70,79,77,56,141,136,135,148,123,148,152,131,139,139,143,126,32767,32767,32767,32767,32767,32767,32767,32767,32767,32767,32767,32767,32767,32767,32767,32767,32767,32767,32767,32767,32767,32767,32767,32767,0,5,11,8,5,7]} 1. d4 {[%emt 0:00:00]} d6 {[%emt 0:00:56]} 2. c4 {[%emt 0:00:52]} Nd7 {[%emt 0:01:03]} 3. g3 {[%emt 0:01:06]} e5 {[%emt 0:00:28]} 4. Bg2 {[%emt 0:00:26]} g6 {[%emt 0:00:45]} 5. Nf3 {[%emt 0:00:27]} Bg7 {[%emt 0:00:05]} 6. O-O {[%emt 0:00:39]} Ne7 {[%emt 0:00:35]} 7. Nc3 {[%emt 0:01:02]} O-O {[%emt 0:00:23]} 8. e4 {[%emt 0:02:02]} a6 {[%emt 0:02:14]} 9. Be3 {[%emt 0:00:08] A42: Modern Defence: Averbakh Variation} Rb8 {[%emt 0:01:10]} (9... exd4 10. Bxd4 Nf6 11. Qc2 Nc6 12. Be3 Ng4 {½-½ (12) Nikolic,P (2630)-Azmaiparashvili,Z (2655) Wijk aan Zee 1993}) 10. Qd2 {[%emt 0:00:25]} ({White should try} 10. dxe5 $16 Nxe5 11. Nxe5 Bxe5 12. Rc1) 10... Re8 $146 {[%emt 0:07:55]} ({Predecessor:} 10... b5 11. cxb5 axb5 12. dxe5 dxe5 13. Rfd1 Qe8 14. Rac1 Rb7 15. Nd5 Nxd5 16. Qxd5 Qe7 {½-½ (29) Korn,A (2004)-Wurm,C (2083) Austria 2012}) 11. Rad1 {[%emt 0:00:15]} Nc6 {[%emt 0:01:29]} 12. Bg5 {[%emt 0:01:21]} f6 {[%emt 0:00:21]} 13. Be3 {[%emt 0:00:04]} b5 {[%emt 0:01:25]} 14. cxb5 {[%emt 0:00:14]} axb5 {[%emt 0:00:03]} 15. dxe5 {[%emt 0:00:44]} Ndxe5 {[%emt 0:00:30]} 16. Nxe5 {[%emt 0:02:19]} Nxe5 {[%emt 0:00:24]} 17. b3 {[%emt 0:00:17]} Be6 {[%emt 0:01:42]} 18. h3 {[%emt 0:01:00] [#]} (18. Nd5 $14 {stays ahead.}) 18... Bf7 {[%emt 0:01:03]} (18... Bxh3 $1 $17 {[%mdl 512]} 19. f3 (19. Bxh3 Nf3+) 19... Qc8) 19. f4 {[%emt 0:01:18]} Nd7 {[%emt 0:01:29]} 20. Nd5 {[%emt 0:00:17]} c6 {[%emt 0:01:42]} ({Better is} 20... Rc8 $14) 21. Nb4 $1 {[%emt 0:00:13] Discovered Attack} Rc8 {[%emt 0:20:55]} 22. Qxd6 {[%emt 0:00:30] Double Attack} Nb8 {[%emt 0:00:10]} 23. Qxd8 {[%emt 0:01:45]} Rexd8 {[%emt 0:02:03]} 24. Rxd8+ {[%emt 0:00:22]} Rxd8 {[%emt 0:00:03]} 25. Rc1 {[%emt 0:00:09]} Be8 {[%emt 0:00:48]} 26. Bf1 {[%emt 0:03:04]} Bf8 {[%emt 0:01:58]} 27. Nd3 {[%emt 0:00:06]} Ba3 {[%emt 0:01:32]} 28. Rc2 {[%emt 0:02:17]} Na6 {[%emt 0:00:52]} 29. e5 {[%emt 0:00:11]} fxe5 {[%emt 0:00:34]} 30. Nxe5 {[%emt 0:00:13]} Nb4 {[%emt 0:00:40]} 31. Re2 {[%emt 0:00:25]} Nd5 {[%emt 0:03:52]} 32. Bd2 {[%emt 0:00:54]} Bc5+ {[%emt 0:00:19]} 33. Kh2 {[%emt 0:00:06]} Ra8 {[%emt 0:00:15]} 34. Bg2 {[%emt 0:01:11]} Rxa2 {[%emt 0:01:03]} 35. Nd3 {[%emt 0:00:09]} Be3 {[%emt 0:01:22]} 36. Rxe3 {[%emt 0:01:24]} Rxd2 {[%emt 0:02:14]} 37. Rxe8+ {[%emt 0:01:20]} Kf7 {[%emt 0:00:02]} 38. Rc8 {[%emt 0:01:26]} Rxd3 {[%emt 0:01:08]} 39. Rxc6 {[%emt 0:00:20]} Ne3 {[%emt 0:01:58]} 40. Rc7+ {[%emt 0:01:27]} Kg8 {[%emt 0:00:06]} 41. Rc8+ $11 {[%emt 0:06:24]} Kg7 {[%emt 0:00:06]} 1/2-1/2

[Event "Targo Mures Open 2019"]
[Site "Targo Mures"]
[Date "2019.10.20"]
[Round "6.12"]
[White "Rosca, Vasile-Benone"]
[Black "Chiriac, Daniel"]
[Result "0-1"]
[ECO "B21"]
[WhiteElo "2017"]
[BlackElo "1836"]
[Annotator "NA"]
[PlyCount "50"]
[EventDate "2019.03.02"]
[EventType "swiss"]
[EventCountry "ROU"]
[SourceTitle "playchess.com"]
[Source "ChessBase"]
[SourceQuality "1"]
[TimeControl "5400+30"]

{[%evp 8,39,4,7,4,20,0,-15,11,0,8,-9,-3,32767,32767,-6,1,-25,2,-61,-63,-75,-54,-70,-28,-37,-29,-47,-47,-38,32767,32767,32767,-120]} 1. e4 {[%emt 0:00:00]} c5 {[%emt 0:00:00]} 2. f4 {[%emt 0:00:00]} d6 {[%emt 0:00:00]} 3. Nf3 {[%emt 0:00:00]} Nf6 {[%emt 0:00:34]} 4. Bb5+ {[%emt 0:00:06]} Bd7 {[%emt 0:00:49]} 5. Bxd7+ {[%emt 0:00:15]} Qxd7 {[%emt 0:03:51]} 6. Nc3 {[%emt 0:00:16]} Nc6 {[%emt 0:01:15]} 7. O-O {[%emt 0:00:11]} g6 {[%emt 0:01:23]} 8. d3 {[%emt 0:13:08]} Bg7 {[%emt 0:01:30]} 9. Ne2 {[%emt 0:03:31] B23: Closed Sicilian: Lines without g3} (9. Bd2 O-O 10. Qe1 b5 11. Ne2 a5 12. f5 Nb4 13. Qd1 c4 14. Nf4 cxd3 15. cxd3 gxf5 16. exf5 Qxf5 {0-1 (41) Kislinsky,A (2481)-Navara,D (2732) Ostrava 2017}) 9... O-O {[%emt 0:03:45]} 10. c3 {[%emt 0:01:30]} Rad8 {[%emt 0:03:28]} 11. Be3 $146 {[%emt 0:01:04]} ({Predecessor:} 11. Ng3 h6 12. Qe1 e5 13. f5 Kh7 14. Ne2 Qe7 15. h3 Ng8 16. g4 Nb8 17. g5 hxg5 18. Nxg5+ Kh8 19. Qh4+ Bh6 20. f6 Qe8 21. Ng3 Nd7 22. Be3 Rc8 23. Ne6 {1-0 (23) Cummer,J (1839)-Medes,B (1397) Winnipeg 1998}) 11... b5 {[%emt 0:06:23]} 12. Qd2 {[%emt 0:01:05]} b4 {[%emt 0:05:28]} 13. Ng3 {[%emt 0:01:41]} (13. cxb4 $11 Nxb4 14. a3) 13... Ng4 {[%emt 0:08:55]} 14. d4 {[%emt 0:00:33]} bxc3 {[%emt 0:07:40]} 15. bxc3 {[%emt 0:00:20]} Nxe3 {[%emt 0:00:04]} 16. Qxe3 {[%emt 0:00:02]} cxd4 {[%emt 0:00:08]} 17. cxd4 $15 {[%emt 0:00:26]} Rb8 {[%emt 0:00:11]} 18. Rab1 {[%emt 0:01:43]} Rb7 {[%emt 0:04:15]} 19. d5 {[%emt 0:12:20]} Na5 {[%emt 0:01:13]} 20. Nd2 {[%emt 0:02:24]} (20. Rxb7 $11 {remains equal.} Qxb7 21. Rc1) 20... Qa4 {[%emt 0:02:28]} 21. Ne2 {[%emt 0:00:10]} Rxb1 {[%emt 0:05:00]} 22. Rxb1 {[%emt 0:00:31]} Qxa2 {[%emt 0:00:26]} 23. Rc1 {[%emt 0:02:17]} Nb7 {[%emt 0:05:29]} 24. Rc7 {[%emt 0:00:41]} Nc5 {[%emt 0:00:15]} 25. Nd4 {[%emt 0:08:13]} Qa1+ {[%emt 0:00:45]} 0-1

[Event "Targo Mures Open 2019"]
[Site "Targo Mures"]
[Date "2019.10.20"]
[Round "7.1"]
[White "Manolache, Marius"]
[Black "Istratescu, Andrei"]
[Result "1/2-1/2"]
[ECO "A46"]
[WhiteElo "2548"]
[BlackElo "2564"]
[Annotator "ChessBase"]
[PlyCount "78"]
[EventDate "2019.03.02"]
[EventType "swiss"]
[EventCountry "ROU"]
[SourceTitle "playchess.com"]
[Source "ChessBase"]
[SourceQuality "1"]
[TimeControl "5400+30"]

1. d4 {[%emt 0:00:00]} Nf6 {[%emt 0:01:55]} 2. Nf3 {[%emt 0:00:00]} e6 {[%emt 0:01:27]} 3. e3 {[%emt 0:00:00]} b6 {[%emt 0:06:31]} 4. b3 {[%emt 0:01:01]} Bb7 {[%emt 0:01:09]} 5. Bb2 {[%emt 0:00:28]} c5 {[%emt 0:03:02]} 6. Be2 {[%emt 0:02:23]} cxd4 {[%emt 0:01:14]} 7. exd4 {[%emt 0:00:08]} Be7 {[%emt 0:00:12]} 8. O-O {[%emt 0:00:13]} O-O {[%emt 0:00:05]} 9. c4 {[%emt 0:01:29]} d5 {[%emt 0:01:30]} 10. Nc3 {[%emt 0:00:23]} Nbd7 {[%emt 0:02:07]} 11. Rc1 {[%emt 0:10:21]} Rc8 {[%emt 0:00:36]} 12. cxd5 {[%emt 0:08:21]} Nxd5 {[%emt 0:00:21]} 13. Nxd5 {[%emt 0:00:05]} Bxd5 {[%emt 0:00:07]} 14. Bc4 {[%emt 0:00:14]} Nf6 {[%emt 0:01:16]} 15. Qe2 {[%emt 0:01:09]} Bd6 {[%emt 0:04:23]} 16. Ne5 {[%emt 0:01:54]} Qe7 {[%emt 0:02:05]} 17. h3 {[%emt 0:08:05]} Rc7 {[%emt 0:08:06]} 18. Ba6 {[%emt 0:00:24]} Bb7 {[%emt 0:05:23]} 19. Rxc7 {[%emt 0:01:43]} Qxc7 {[%emt 0:01:08]} 20. Rc1 {[%emt 0:00:07]} Qb8 {[%emt 0:00:45]} 21. Qb5 {[%emt 0:16:00]} Rc8 {[%emt 0:07:59]} 22. Rxc8+ {[%emt 0:12:24]} Qxc8 {[%emt 0:00:10]} 23. Bxb7 {[%emt 0:00:11]} Qxb7 {[%emt 0:00:02]} 24. Ng4 {[%emt 0:00:30]} Qe4 {[%emt 0:01:54]} 25. Nxf6+ {[%emt 0:02:54]} gxf6 {[%emt 0:04:40]} 26. Qf1 {[%emt 0:00:07]} Qf4 {[%emt 0:07:41]} 27. g3 {[%emt 0:00:05]} Qf3 {[%emt 0:00:03]} 28. Qe1 {[%emt 0:00:49]} h5 {[%emt 0:04:08]} 29. Qc3 {[%emt 0:03:40]} Qxc3 {[%emt 0:01:33]} 30. Bxc3 {[%emt 0:00:06]} f5 {[%emt 0:00:02]} 31. Kg2 {[%emt 0:02:14]} Kf8 {[%emt 0:01:12]} 32. f3 {[%emt 0:00:23]} Ke7 {[%emt 0:00:51]} 33. g4 {[%emt 0:00:29]} hxg4 {[%emt 0:04:11]} 34. fxg4 {[%emt 0:00:28]} fxg4 {[%emt 0:04:37]} 35. hxg4 {[%emt 0:00:05]} Kd7 {[%emt 0:00:33]} 36. Kf3 {[%emt 0:00:11]} Kc6 {[%emt 0:00:02]} 37. Ke4 {[%emt 0:00:06]} b5 {[%emt 0:00:21]} 38. g5 {[%emt 0:01:19]} a6 {[%emt 0:02:04]} 39. Bd2 {[%emt 0:00:09]} Bg3 {[%emt 0:03:12]} 1/2-1/2

[Event "Targo Mures Open 2019"]
[Site "Targo Mures"]
[Date "2019.10.20"]
[Round "7.2"]
[White "Manea, Alexandru"]
[Black "Jianu, Vlad-Cristian"]
[Result "0-1"]
[ECO "A46"]
[WhiteElo "2305"]
[BlackElo "2529"]
[Annotator "ChessBase"]
[PlyCount "68"]
[EventDate "2019.03.02"]
[EventType "swiss"]
[EventCountry "ROU"]
[SourceTitle "playchess.com"]
[Source "ChessBase"]
[SourceQuality "1"]
[TimeControl "5400+30"]

1. d4 {[%emt 0:05:19]} Nf6 {[%emt 0:00:00]} 2. Nf3 {[%emt 0:00:12]} e6 {[%emt 0:00:00]} 3. g3 {[%emt 0:00:18]} d5 {[%emt 0:02:16]} 4. Bg2 {[%emt 0:00:34]} Be7 {[%emt 0:02:35]} 5. O-O {[%emt 0:00:08]} O-O {[%emt 0:00:34]} 6. b3 {[%emt 0:00:05]} b6 {[%emt 0:01:52]} 7. Bb2 {[%emt 0:00:16]} Bb7 {[%emt 0:00:07]} 8. Nbd2 {[%emt 0:00:25]} Nbd7 {[%emt 0:01:40]} 9. c4 {[%emt 0:00:06]} c5 {[%emt 0:01:20]} 10. Rc1 {[%emt 0:00:12]} Rc8 {[%emt 0:02:18]} 11. Qc2 {[%emt 0:13:30]} dxc4 {[%emt 0:17:22]} 12. Qxc4 {[%emt 0:00:31]} cxd4 {[%emt 0:01:24]} 13. Qxd4 {[%emt 0:00:08]} Bc5 {[%emt 0:00:13]} 14. Qh4 {[%emt 0:00:17]} Nd5 {[%emt 0:07:54]} 15. Qxd8 {[%emt 0:04:02]} Rfxd8 {[%emt 0:00:06]} 16. Nc4 {[%emt 0:00:04]} Be7 {[%emt 0:07:01]} 17. Nd4 {[%emt 0:12:01]} Nc5 {[%emt 0:02:12]} 18. Nb5 {[%emt 0:02:53]} Ba6 {[%emt 0:02:56]} 19. Nc3 {[%emt 0:05:51]} Bxc4 {[%emt 0:06:01]} 20. bxc4 {[%emt 0:00:01]} Nxc3 {[%emt 0:00:09]} 21. Bxc3 {[%emt 0:00:02]} Na4 {[%emt 0:00:26]} 22. Ba1 {[%emt 0:05:10]} Rd2 {[%emt 0:05:11]} 23. Bf3 {[%emt 0:00:07]} Rxa2 {[%emt 0:10:42]} 24. Rfd1 {[%emt 0:00:37]} Bf6 {[%emt 0:05:43]} 25. Bd4 {[%emt 0:12:14]} Bxd4 {[%emt 0:03:42]} 26. Rxd4 {[%emt 0:00:02]} g6 {[%emt 0:00:19]} 27. Kf1 {[%emt 0:02:14]} Kg7 {[%emt 0:00:25]} 28. h4 {[%emt 0:00:05]} b5 {[%emt 0:02:19]} 29. Rb1 {[%emt 0:00:33]} Rxc4 {[%emt 0:01:46]} 30. Rxc4 {[%emt 0:00:26]} bxc4 {[%emt 0:00:04]} 31. Rc1 {[%emt 0:00:19]} Nb6 {[%emt 0:00:47]} 32. e3 {[%emt 0:00:04]} Kf6 {[%emt 0:00:53]} 33. Be2 {[%emt 0:00:07]} Ra5 {[%emt 0:00:19]} 34. Ke1 {[%emt 0:00:24]} Ke5 {[%emt 0:00:59]} 0-1

[Event "Targo Mures Open 2019"]
[Site "Targo Mures"]
[Date "2019.10.20"]
[Round "7.4"]
[White "Filip, Lucian-Ioan"]
[Black "Filip, Andrei"]
[Result "1-0"]
[ECO "A58"]
[WhiteElo "2418"]
[BlackElo "2047"]
[Annotator "NA RC"]
[PlyCount "47"]
[EventDate "2019.03.02"]
[EventType "swiss"]
[EventCountry "ROU"]
[SourceTitle "playchess.com"]
[Source "ChessBase"]
[SourceQuality "1"]
[TimeControl "5400+30"]

1. d4 {[%emt 0:00:00]} Nf6 {[%emt 0:00:00]} 2. c4 {[%emt 0:00:00]} c5 {[%emt 0:00:00]} 3. d5 {[%emt 0:00:20]} b5 {[%emt 0:00:33]} 4. cxb5 {[%emt 0:00:07]} a6 {[%emt 0:00:04]} 5. bxa6 {[%emt 0:00:06]} d6 {[%emt 0:00:46]} 6. e4 {[%emt 0:18:00]} g6 {[%emt 0:04:10]} 7. Nc3 {[%emt 0:00:36]} Bg7 {[%emt 0:01:24]} 8. Nf3 {[%emt 0:03:16]} O-O {[%emt 0:00:15]} 9. a4 {[%emt 0:00:09]} Bxa6 {[%emt 0:01:39]} 10. Bxa6 {[%emt 0:00:10]} Nxa6 {[%emt 0:00:23]} 11. O-O {[%emt 0:00:10]} Nb4 {[%emt 0:02:12]} 12. Qe2 {[%emt 0:11:20]} Qa5 {[%emt 0:05:54]} 13. Nb5 {[%emt 0:23:37]} Nd7 {[%emt 0:08:13]} 14. Bd2 $16 {[%emt 0:02:28]} Rfb8 {[%emt 0:36:08]} 15. Bc3 {[%emt 0:03:06]} Nb6 {[%emt 0:11:31]} 16. Bxg7 {[%emt 0:04:43]} Kxg7 {[%emt 0:00:02]} 17. b3 {[%emt 0:01:02]} Rc8 {[%emt 0:04:10]} 18. Rfc1 {[%emt 0:04:29]} Na6 {[%emt 0:02:29]} 19. e5 {[%emt 0:16:57]} Nxd5 {[%emt 0:10:32]} 20. exd6 {[%emt 0:00:08]} exd6 {[%emt 0:02:22]} 21. Nxd6 {[%emt 0:00:12]} Rf8 {[%emt 0:03:31]} 22. Qe5+ {[%emt 0:02:15]} Nf6 {[%emt 0:00:10]} 23. Ng5 {[%emt 0:06:34]} Qd2 {[%emt 0:03:46]} 24. Rd1 {[%emt 0:01:04]} 1-0

[Event "Targo Mures Open 2019"]
[Site "Targo Mures"]
[Date "2019.10.20"]
[Round "7.5"]
[White "Rusan, Paul-Cristian"]
[Black "Vasiesiu, Dan"]
[Result "1/2-1/2"]
[ECO "B90"]
[WhiteElo "2105"]
[BlackElo "2392"]
[Annotator "NA"]
[PlyCount "52"]
[EventDate "2019.03.02"]
[EventType "swiss"]
[EventCountry "ROU"]
[SourceTitle "playchess.com"]
[Source "ChessBase"]
[SourceQuality "1"]
[TimeControl "5400+30"]

1. e4 {[%emt 0:00:00]} c5 {[%emt 0:00:00]} 2. Nf3 {[%emt 0:00:00]} d6 {[%emt 0:00:18]} 3. d4 {[%emt 0:01:06]} cxd4 {[%emt 0:00:10]} 4. Nxd4 {[%emt 0:01:08]} Nf6 {[%emt 0:00:12]} 5. Nc3 {[%emt 0:00:06]} a6 {[%emt 0:00:11]} 6. h3 {[%emt 0:00:45]} e6 {[%emt 0:01:26]} 7. g4 {[%emt 0:00:19]} Nfd7 {[%emt 0:00:20] B81: Sicilian Scheveningen: Keres Attack} (7... h6 8. Bg2 Be7 9. Qd3 Nc6 10. Nxc6 bxc6 11. e5 Nd5 12. exd6 Bxd6 13. Ne4 Bc7 14. c4 Nf4 15. Qxd8+ Kxd8 16. Kf1 {½-½ (45) Nepomniachtchi,I (2775)-Wojtaszek,R (2737) Dortmund 2019}) 8. Bg2 {[%emt 0:02:26]} Be7 {[%emt 0:00:37]} 9. O-O {[%emt 0:01:50]} Nc6 {[%emt 0:02:16]} 10. Kh1 {[%emt 0:06:44]} O-O {[%emt 0:01:41]} 11. f4 {[%emt 0:00:38]} Nxd4 {[%emt 0:07:33]} 12. Qxd4 {[%emt 0:00:11]} b5 {[%emt 0:05:24]} 13. a4 $146 {[%emt 0:03:43]} ({Predecessor:} 13. Ne2 Qc7 14. Ng3 Bf6 15. Qe3 Bb7 16. g5 {1-0 (28) Argote Heredia,V (1944)-Encina,G (1732) Montevideo 2017}) 13... bxa4 {[%emt 0:02:23]} 14. Nxa4 {[%emt 0:01:31]} Bb7 {[%emt 0:01:33]} 15. c4 {[%emt 0:05:51]} Rc8 {[%emt 0:00:29]} 16. Be3 {[%emt 0:04:23]} e5 {[%emt 0:14:45]} 17. Qd3 {[%emt 0:03:48]} exf4 {[%emt 0:06:21]} 18. Bxf4 {[%emt 0:00:54]} Ne5 {[%emt 0:01:06]} 19. Bxe5 {[%emt 0:03:21]} dxe5 {[%emt 0:00:13]} 20. Rfd1 {[%emt 0:04:17]} Qxd3 {[%emt 0:20:41]} 21. Rxd3 {[%emt 0:00:07]} Rb8 $11 {[%emt 0:02:59]} 22. b3 {[%emt 0:25:59]} Bc8 {[%emt 0:12:06]} 23. Rb1 {[%emt 0:03:31]} a5 {[%emt 0:11:33]} 24. Rd5 {[%emt 0:03:50]} Be6 {[%emt 0:02:32]} 25. Rxe5 {[%emt 0:02:39]} Bb4 {[%emt 0:00:06]} 26. Nc5 {[%emt 0:01:52]} Bc3 {[%emt 0:01:47]} 1/2-1/2

[Event "Targo Mures Open 2019"]
[Site "Targo Mures"]
[Date "2019.10.20"]
[Round "7.6"]
[White "Banzea, Alexandru-Bogdan"]
[Black "Stegariu, Alexandru"]
[Result "1-0"]
[ECO "C88"]
[WhiteElo "2389"]
[BlackElo "2146"]
[Annotator "NA"]
[PlyCount "87"]
[EventDate "2019.03.02"]
[EventType "swiss"]
[EventCountry "ROU"]
[SourceTitle "playchess.com"]
[Source "ChessBase"]
[SourceQuality "1"]
[TimeControl "5400+30"]

1. e4 {[%emt 0:00:00]} e5 {[%emt 0:00:00]} 2. Nf3 {[%emt 0:00:09]} Nc6 {[%emt 0:00:00]} 3. Bb5 {[%emt 0:01:20]} a6 {[%emt 0:00:00]} 4. Ba4 {[%emt 0:00:07]} Nf6 {[%emt 0:00:00]} 5. O-O {[%emt 0:00:22]} b5 {[%emt 0:00:55]} 6. Bb3 {[%emt 0:00:09]} Be7 {[%emt 0:00:03]} 7. Re1 {[%emt 0:02:26]} O-O {[%emt 0:00:18]} 8. a4 {[%emt 0:00:22]} b4 {[%emt 0:02:20]} 9. a5 {[%emt 0:00:19]} d6 {[%emt 0:05:18]} 10. d3 {[%emt 0:00:15]} Na7 {[%emt 0:03:29] C88: Closed Ruy Lopez: Anti-Marshall Systems} (10... Be6 11. Bxe6 fxe6 12. Nbd2 d5 13. Nb3 d4 14. Bd2 Rb8 15. Rc1 Rb5 16. h3 Qd6 17. Bg5 Nd7 18. Bxe7 Qxe7 19. Nfd2 Nc5 20. Nc4 Nb7 21. Ra1 Nd6 22. Ncd2 Nb7 23. Nc4 Nd6 24. Ncd2 Nb7 25. Nc4 {½-½ (25) Vachier Lagrave,M (2773)-Aronian,L (2763) Karlsruhe/Baden Baden 2019}) 11. Nbd2 {[%emt 0:01:15]} c5 {[%emt 0:03:51]} 12. Nc4 {[%emt 0:10:05]} Be6 $146 {[%emt 0:04:10]} ({Predecessor:} 12... Rb8 13. Bg5 Be6 14. Ncd2 Bxb3 15. Nxb3 Nd5 16. Bxe7 Nxe7 17. Nfd2 f5 18. exf5 Nxf5 {1-0 (36) Martins,A (2018)-Salvador,D (1878) Florianopolis 2017}) 13. Nb6 {[%emt 0:07:51]} Bxb3 {[%emt 0:05:55]} 14. Nxa8 {[%emt 0:00:26]} Bxc2 {[%emt 0:00:05]} 15. Qxc2 {[%emt 0:00:09]} Qxa8 {[%emt 0:00:02]} 16. Be3 {[%emt 0:06:04]} Nc6 {[%emt 0:03:44]} 17. Nd2 {[%emt 0:00:18]} Ne8 {[%emt 0:04:12]} 18. g3 {[%emt 0:04:32]} Nc7 {[%emt 0:03:51]} 19. f4 {[%emt 0:06:13]} Nb5 {[%emt 0:12:17]} 20. Nf3 {[%emt 0:02:20]} Bf6 {[%emt 0:01:33]} 21. f5 {[%emt 0:01:35]} Qd8 {[%emt 0:09:24]} 22. g4 {[%emt 0:01:21]} Nbd4 {[%emt 0:01:23]} 23. Bxd4 {[%emt 0:03:22]} exd4 {[%emt 0:01:58]} 24. Kh1 $11 {[%emt 0:02:18]} Bg5 {[%emt 0:05:06]} 25. Qc4 {[%emt 0:01:50]} Nb8 {[%emt 0:04:59]} 26. Qd5 {[%emt 0:02:53]} Bf4 {[%emt 0:02:23]} 27. e5 {[%emt 0:03:00]} dxe5 {[%emt 0:00:43]} 28. Qxd8 {[%emt 0:00:22]} Rxd8 {[%emt 0:00:04]} 29. Nxe5 {[%emt 0:00:07]} Kf8 {[%emt 0:01:38]} 30. Re4 {[%emt 0:01:38]} Be3 {[%emt 0:01:36]} 31. Nc4 {[%emt 0:00:18]} Bg5 {[%emt 0:01:27]} 32. Rae1 {[%emt 0:03:02]} Nc6 {[%emt 0:00:22]} 33. b3 {[%emt 0:03:02]} g6 {[%emt 0:00:53]} 34. fxg6 {[%emt 0:03:29]} hxg6 {[%emt 0:01:18]} 35. Rf1 {[%emt 0:01:46]} Re8 {[%emt 0:02:57]} 36. Rxe8+ {[%emt 0:02:10]} Kxe8 {[%emt 0:00:12]} 37. Kg2 {[%emt 0:00:53]} f6 {[%emt 0:00:36]} 38. Kg3 {[%emt 0:00:53]} Ke7 {[%emt 0:00:04]} 39. h4 {[%emt 0:02:11]} Be3 {[%emt 0:00:05]} 40. Kf3 {[%emt 0:02:04]} Ke6 {[%emt 0:00:22]} 41. Ke4 {[%emt 0:06:27]} Bh6 {[%emt 0:03:49]} 42. g5 {[%emt 0:02:42]} f5+ {[%emt 0:01:02]} 43. Kf4 {[%emt 0:00:44]} Bg7 {[%emt 0:01:50]} 44. Re1+ {[%emt 0:01:48] Bf6} 1-0

[Event "Targo Mures Open 2019"]
[Site "Targo Mures"]
[Date "2019.10.20"]
[Round "7.7"]
[White "Chiriac, Daniel"]
[Black "Ognean, Mihnea-Ionut"]
[Result "0-1"]
[ECO "A22"]
[WhiteElo "1836"]
[BlackElo "2285"]
[Annotator "NA"]
[PlyCount "48"]
[EventDate "2019.03.02"]
[EventType "swiss"]
[EventCountry "ROU"]
[SourceTitle "playchess.com"]
[Source "ChessBase"]
[SourceQuality "1"]
[TimeControl "5400+30"]

1. c4 {[%emt 0:00:00]} e5 {[%emt 0:00:00]} 2. Nc3 {[%emt 0:00:00]} Nf6 {[%emt 0:00:00]} 3. g3 {[%emt 0:00:00]} c6 {[%emt 0:00:00]} 4. d4 {[%emt 0:03:28]} exd4 {[%emt 0:00:12]} 5. Qxd4 {[%emt 0:00:06]} d5 {[%emt 0:00:03]} 6. cxd5 {[%emt 0:01:30]} cxd5 {[%emt 0:00:05]} 7. Bg2 {[%emt 0:00:04]} Nc6 {[%emt 0:01:00]} 8. Qd1 {[%emt 0:00:10]} d4 {[%emt 0:02:57]} 9. Ne4 {[%emt 0:00:22]} Bb4+ {[%emt 0:04:40] A23: English Opening: 1...e5 2 Nc3 Nf6 3 g3 c6} 10. Bd2 {[%emt 0:00:15]} O-O {[%emt 0:00:08]} 11. Bxb4 {[%emt 0:05:19]} (11. Nxf6+ Qxf6 12. Nf3 d3 13. O-O dxe2 14. Qxe2 Qxb2 15. Rfb1 Qf6 16. Bxb4 Nxb4 17. Qb2 Qxb2 18. Rxb2 {½-½ (41) Krivtsov,A (2232)-Khanin,S (2485) Voronezh 2018}) 11... Nxb4 {[%emt 0:00:11]} 12. Qd2 $146 {[%emt 0:00:33]} ({Predecessor:} 12. a3 Nc6 13. Nxf6+ Qxf6 14. Nf3 Be6 15. O-O Rad8 16. Qd2 Rfe8 17. Ng5 {0-1 (47) Guliashvili,L (2002)-Avdeenko,T (2108) Novokuznetsk 2013}) 12... Nxe4 {[%emt 0:04:03]} 13. Qxb4 {[%emt 0:07:20]} a5 {[%emt 0:05:46]} 14. Qa3 {[%emt 0:01:57]} Re8 {[%emt 0:00:53]} 15. Rd1 {[%emt 0:01:59]} Qb6 {[%emt 0:06:35]} 16. Qd3 {[%emt 0:12:11]} Qb4+ {[%emt 0:05:58]} 17. Kf1 {[%emt 0:00:08]} Bf5 {[%emt 0:00:06]} 18. Qxd4 {[%emt 0:04:46]} Qe7 {[%emt 0:00:08]} 19. Qe3 {[%emt 0:04:01]} Qc7 {[%emt 0:11:59]} 20. Nh3 {[%emt 0:06:22]} Rad8 {[%emt 0:11:13]} 21. Rxd8 {[%emt 0:05:19]} Qxd8 {[%emt 0:00:51]} ({Weaker is} 21... Rxd8 22. Bxe4 Bxh3+ 23. Ke1 $15) 22. Ke1 $19 {[%emt 0:01:11]} Qd6 {[%emt 0:00:38]} 23. a3 {[%emt 0:08:26]} Rd8 {[%emt 0:00:13]} 24. Qd3 {[%emt 0:00:42]} Qc7 {[%emt 0:01:00]} 0-1

[Event "Targo Mures Open 2019"]
[Site "Targo Mures"]
[Date "2019.10.20"]
[Round "7.8"]
[White "Soltanici, Ruslan"]
[Black "Paraschiv, Petronela-Alexandra"]
[Result "1-0"]
[ECO "B01"]
[WhiteElo "2416"]
[BlackElo "1829"]
[Annotator "NA"]
[PlyCount "29"]
[EventDate "2019.03.02"]
[EventType "swiss"]
[EventCountry "ROU"]
[SourceTitle "playchess.com"]
[Source "ChessBase"]
[SourceQuality "1"]
[TimeControl "5400+30"]

1. e4 {[%emt 0:00:00]} d5 {[%emt 0:00:00]} 2. exd5 {[%emt 0:00:01]} Qxd5 {[%emt 0:00:00]} 3. Nc3 {[%emt 0:00:32]} Qa5 {[%emt 0:00:06]} 4. g3 {[%emt 0:01:24]} Nf6 {[%emt 0:00:23]} 5. Bg2 {[%emt 0:00:11]} c6 {[%emt 0:00:12]} 6. Nf3 {[%emt 0:00:12]} Bf5 {[%emt 0:01:06]} 7. b4 {[%emt 0:02:30]} Qc7 {[%emt 0:03:56]} 8. Rb1 {[%emt 0:00:58]} e6 {[%emt 0:01:14]} 9. O-O {[%emt 0:01:36]} Bd6 {[%emt 0:06:41]} 10. b5 {[%emt 0:04:08]} c5 {[%emt 0:03:54]} 11. d3 {[%emt 0:01:29]} O-O {[%emt 0:00:59]} 12. Nd2 {[%emt 0:00:55]} Nbd7 {[%emt 0:08:28]} 13. Nc4 {[%emt 0:00:51]} Rab8 {[%emt 0:00:43]} 14. b6 {[%emt 0:00:45]} Nxb6 {[%emt 0:02:12]} 15. Nb5 {[%emt 0:00:20]} 1-0